[Event "7th Cattolica Open-A 2020"]
[Site "Cattolica"]
[Date "2020.08.31"]
[Round "1.1"]
[White "Studer, Noel"]
[Black "Gallana, Marco"]
[Result "1-0"]
[ECO "B38"]
[WhiteElo "2573"]
[BlackElo "2195"]
[Annotator "ChessBase"]
[PlyCount "53"]
[EventDate "2020.08.31"]
[EventType "swiss"]
[EventCountry "ITA"]
[SourceTitle "playchess.com"]
[Source "ChessBase"]
[SourceQuality "1"]
[TimeControl "5400+30"]

1. c4 {[%emt 0:00:00]} g6 {[%emt 0:00:19]} 2. e4 {[%emt 0:00:03]} c5 {[%emt 0:00:39]} 3. Nf3 {[%emt 0:01:25]} Bg7 {[%emt 0:00:17]} 4. d4 {[%emt 0:00:54]} cxd4 {[%emt 0:00:45]} 5. Nxd4 {[%emt 0:00:22]} Nc6 {[%emt 0:01:48]} 6. Be3 {[%emt 0:00:30]} Nh6 {[%emt 0:05:34]} 7. Be2 {[%emt 0:01:02]} f6 {[%emt 0:03:21]} 8. Nc3 {[%emt 0:00:45]} Nf7 {[%emt 0:01:09]} 9. h4 {[%emt 0:03:50]} Nxd4 {[%emt 0:24:46]} 10. Bxd4 {[%emt 0:01:16]} d6 {[%emt 0:07:03]} 11. h5 {[%emt 0:05:06]} g5 {[%emt 0:06:25]} 12. g3 {[%emt 0:01:38]} h6 {[%emt 0:04:20]} 13. Qb3 {[%emt 0:07:25]} e6 {[%emt 0:05:03]} 14. c5 {[%emt 0:02:20]} O-O {[%emt 0:10:19]} 15. Rd1 {[%emt 0:00:44]} dxc5 {[%emt 0:03:21]} 16. Bxc5 {[%emt 0:01:16]} Qc7 {[%emt 0:00:13]} 17. Bxf8 {[%emt 0:00:37]} Bxf8 {[%emt 0:00:08]} 18. O-O {[%emt 0:00:42]} a6 {[%emt 0:08:35]} 19. Rc1 {[%emt 0:02:02]} Qe5 {[%emt 0:01:24]} 20. Na4 {[%emt 0:02:44]} Bd7 {[%emt 0:02:51]} 21. Nb6 {[%emt 0:01:23]} Rd8 {[%emt 0:00:10]} 22. Bc4 {[%emt 0:02:22]} Bc6 {[%emt 0:02:12]} 23. Bxe6 {[%emt 0:00:06]} Qxe4 {[%emt 0:00:36]} 24. Bxf7+ {[%emt 0:00:05]} Kh8 {[%emt 0:01:04]} 25. Rxc6 {[%emt 0:00:05]} Qxc6 {[%emt 0:03:03]} 26. Bd5 {[%emt 0:01:10]} Qc7 {[%emt 0:00:32]} 27. Bg2 {[%emt 0:00:26]} 1-0

[Event "7th Cattolica Open-A 2020"]
[Site "Cattolica"]
[Date "2020.08.31"]
[Round "1.2"]
[White "Paduano, Claudio"]
[Black "Degraeve, Jean-Marc"]
[Result "0-1"]
[ECO "E61"]
[WhiteElo "2266"]
[BlackElo "2530"]
[Annotator "ChessBase"]
[PlyCount "84"]
[EventDate "2020.08.31"]
[EventType "swiss"]
[EventCountry "ITA"]
[SourceTitle "playchess.com"]
[Source "ChessBase"]
[SourceQuality "1"]
[TimeControl "5400+30"]

1. d4 {[%emt 0:00:20]} d6 {[%emt 0:00:00]} 2. c4 {[%emt 0:03:40]} e5 {[%emt 0:00:00]} 3. e3 {[%emt 0:04:35]} Nf6 {[%emt 0:01:15]} 4. Nc3 {[%emt 0:04:16]} Nbd7 {[%emt 0:00:12]} 5. g3 {[%emt 0:11:26]} g6 {[%emt 0:01:32]} 6. Bg2 {[%emt 0:02:01]} Bg7 {[%emt 0:00:07]} 7. Nge2 {[%emt 0:01:54]} O-O {[%emt 0:00:37]} 8. O-O {[%emt 0:02:49]} Re8 {[%emt 0:00:03]} 9. Qc2 {[%emt 0:10:01]} c6 {[%emt 0:05:13]} 10. f4 {[%emt 0:19:59]} exd4 {[%emt 0:00:20]} 11. exd4 {[%emt 0:02:22]} Nb6 {[%emt 0:00:44]} 12. b3 {[%emt 0:06:51]} Bf5 {[%emt 0:00:37]} 13. Qd2 {[%emt 0:05:08]} d5 {[%emt 0:00:11]} 14. c5 {[%emt 0:05:34]} Nbd7 {[%emt 0:00:28]} 15. Bb2 {[%emt 0:01:13]} Ne4 {[%emt 0:07:22]} 16. Nxe4 {[%emt 0:02:53]} Bxe4 {[%emt 0:00:07]} 17. Rae1 {[%emt 0:04:29]} f5 {[%emt 0:06:26]} 18. Nc1 {[%emt 0:05:33]} Qf6 {[%emt 0:01:10]} 19. b4 {[%emt 0:02:16]} a5 {[%emt 0:03:19]} 20. bxa5 {[%emt 0:01:48]} Nxc5 {[%emt 0:00:34]} 21. Qb4 {[%emt 0:00:29]} Na6 {[%emt 0:15:07]} 22. Qb3 {[%emt 0:00:41]} Nc7 {[%emt 0:00:08]} 23. Qb6 {[%emt 0:00:40]} Nb5 {[%emt 0:00:11]} 24. Nb3 {[%emt 0:00:28]} Nd6 {[%emt 0:00:06]} 25. Qb4 {[%emt 0:00:32]} Nc4 {[%emt 0:01:19]} 26. Bc3 {[%emt 0:00:30]} Qf7 {[%emt 0:03:24]} 27. Bxe4 {[%emt 0:00:31]} dxe4 {[%emt 0:02:04]} 28. Rd1 {[%emt 0:00:30]} Ne3 {[%emt 0:00:12]} 29. Nc5 {[%emt 0:00:30]} Nxf1 {[%emt 0:00:27]} 30. Rxf1 {[%emt 0:00:28]} Qd5 {[%emt 0:02:17]} 31. Nxb7 {[%emt 0:01:03]} Reb8 {[%emt 0:00:13]} 32. Qb6 {[%emt 0:00:00]} c5 {[%emt 0:01:14]} 33. a6 {[%emt 0:00:28]} cxd4 {[%emt 0:00:08]} 34. Bb4 {[%emt 0:00:31]} Qxa2 {[%emt 0:05:27]} 35. Ba5 {[%emt 0:00:23]} Qd5 {[%emt 0:00:29]} 36. Rc1 {[%emt 0:00:36]} d3 {[%emt 0:01:24]} 37. Kf1 {[%emt 0:00:31]} e3 {[%emt 0:02:16]} 38. Qxe3 {[%emt 0:00:30]} Rxa6 {[%emt 0:00:08]} 39. Rc7 {[%emt 0:00:29]} Rxa5 {[%emt 0:01:46]} 40. Rxg7+ {[%emt 0:00:31]} Kxg7 {[%emt 0:00:08]} 41. Qe7+ {[%emt 0:00:30]} Kg8 {[%emt 0:00:05]} 42. Nxa5 {[%emt 0:00:22]} d2 {[%emt 0:00:14]} 0-1

[Event "7th Cattolica Open-A 2020"]
[Site "Cattolica"]
[Date "2020.08.31"]
[Round "1.3"]
[White "Van Foreest, Lucas"]
[Black "Schloffer, Jasmin-Denise"]
[Result "1-0"]
[ECO "C97"]
[WhiteElo "2531"]
[BlackElo "2110"]
[Annotator "ChessBase"]
[PlyCount "74"]
[EventDate "2020.08.31"]
[EventType "swiss"]
[EventCountry "ITA"]
[SourceTitle "playchess.com"]
[Source "ChessBase"]
[SourceQuality "1"]
[TimeControl "5400+30"]

1. e4 {[%emt 0:00:00]} e5 {[%emt 0:00:00]} 2. Nf3 {[%emt 0:00:00]} Nc6 {[%emt 0:00:00]} 3. Bb5 {[%emt 0:00:39]} a6 {[%emt 0:00:00]} 4. Ba4 {[%emt 0:00:06]} Nf6 {[%emt 0:00:00]} 5. O-O {[%emt 0:00:12]} Be7 {[%emt 0:00:21]} 6. Re1 {[%emt 0:00:29]} b5 {[%emt 0:00:07]} 7. Bb3 {[%emt 0:00:03]} d6 {[%emt 0:00:05]} 8. c3 {[%emt 0:00:05]} O-O {[%emt 0:00:06]} 9. h3 {[%emt 0:00:09]} Na5 {[%emt 0:00:08]} 10. Bc2 {[%emt 0:00:04]} c5 {[%emt 0:00:05]} 11. d4 {[%emt 0:00:06]} Qc7 {[%emt 0:00:07]} 12. d5 {[%emt 0:00:05]} Bd7 {[%emt 0:00:08]} 13. b3 {[%emt 0:01:24]} g6 {[%emt 0:00:18]} 14. Be3 {[%emt 0:00:18]} Nh5 {[%emt 0:01:29]} 15. Nbd2 {[%emt 0:00:25]} Ng7 {[%emt 0:02:37]} 16. g4 {[%emt 0:11:36]} f6 {[%emt 0:02:47]} 17. Nf1 {[%emt 0:00:59]} Nb7 {[%emt 0:01:23]} 18. Qe2 {[%emt 0:13:53]} Rfb8 {[%emt 0:02:58]} 19. Ng3 {[%emt 0:01:09]} Nd8 {[%emt 0:00:20]} 20. Nh2 {[%emt 0:01:39]} Nf7 {[%emt 0:00:14]} 21. f4 {[%emt 0:00:16]} a5 {[%emt 0:10:50]} 22. a4 {[%emt 0:10:53]} bxa4 {[%emt 0:04:51]} 23. bxa4 {[%emt 0:57:00]} Rb2 {[%emt 0:00:24]} 24. Nf3 {[%emt 0:00:00]} exf4 {[%emt 0:07:08]} 25. Bxf4 {[%emt 0:00:00]} Ne5 {[%emt 0:00:09]} 26. Nxe5 {[%emt 0:00:00]} fxe5 {[%emt 0:01:25]} 27. Bc1 {[%emt 0:00:00]} Rbb8 {[%emt 0:00:28]} 28. Kh2 {[%emt 0:00:00]} Bh4 {[%emt 0:04:42]} 29. Rg1 {[%emt 0:00:00]} Rf8 {[%emt 0:00:56]} 30. Be3 {[%emt 0:00:00]} Rab8 {[%emt 0:04:25]} 31. Rg2 {[%emt 0:00:00]} Bxg3+ {[%emt 0:13:22]} 32. Kxg3 {[%emt 0:00:00]} Rf7 {[%emt 0:03:08]} 33. Bd3 {[%emt 0:00:00]} Rbf8 {[%emt 0:04:41]} 34. Bb5 {[%emt 0:00:00]} Bc8 {[%emt 0:00:25]} 35. Rgg1 {[%emt 0:00:00]} Qe7 {[%emt 0:04:11]} 36. Rgf1 {[%emt 0:00:00]} Ne8 {[%emt 0:03:34]} 37. h4 {[%emt 0:00:00]} Nc7 {[%emt 0:04:07]} 1-0

[Event "7th Cattolica Open-A 2020"]
[Site "Cattolica"]
[Date "2020.08.31"]
[Round "1.4"]
[White "Colonetti, Fabio"]
[Black "David, Alberto"]
[Result "1-0"]
[ECO "E57"]
[WhiteElo "2070"]
[BlackElo "2520"]
[Annotator "ChessBase"]
[PlyCount "82"]
[EventDate "2020.08.31"]
[EventType "swiss"]
[EventCountry "ITA"]
[SourceTitle "playchess.com"]
[Source "ChessBase"]
[SourceQuality "1"]
[TimeControl "5400+30"]

1. d4 {[%emt 0:00:00]} Nf6 {[%emt 0:00:00]} 2. c4 {[%emt 0:00:00]} e6 {[%emt 0:00:00]} 3. Nc3 {[%emt 0:00:00]} Bb4 {[%emt 0:00:00]} 4. e3 {[%emt 0:00:19]} O-O {[%emt 0:00:09]} 5. Bd3 {[%emt 0:00:37]} c5 {[%emt 0:01:16]} 6. Nf3 {[%emt 0:00:27]} d5 {[%emt 0:00:32]} 7. O-O {[%emt 0:00:23]} cxd4 {[%emt 0:02:48]} 8. exd4 {[%emt 0:02:05]} dxc4 {[%emt 0:00:12]} 9. Bxc4 {[%emt 0:00:56]} b6 {[%emt 0:00:29]} 10. Bg5 {[%emt 0:11:22]} Bb7 {[%emt 0:01:41]} 11. Re1 {[%emt 0:05:35]} Nc6 {[%emt 0:08:14]} 12. a3 {[%emt 0:07:30]} Be7 {[%emt 0:09:20]} 13. Ba2 {[%emt 0:15:20]} Rc8 {[%emt 0:06:19]} 14. Qd3 {[%emt 0:04:18]} h6 {[%emt 0:10:52]} 15. Bd2 {[%emt 0:12:14]} Bc5 {[%emt 0:06:18]} 16. Be3 {[%emt 0:07:45]} Bd6 {[%emt 0:01:25]} 17. Rad1 {[%emt 0:01:14]} Ne7 {[%emt 0:00:25]} 18. Ne5 {[%emt 0:01:56]} Ned5 {[%emt 0:04:41]} 19. Bc1 {[%emt 0:08:51]} Bxe5 {[%emt 0:06:17]} 20. dxe5 {[%emt 0:03:12]} Nxc3 {[%emt 0:00:25]} 21. bxc3 {[%emt 0:01:12]} Qxd3 {[%emt 0:05:31]} 22. Rxd3 {[%emt 0:00:16]} Ne4 {[%emt 0:01:15]} 23. Rd7 {[%emt 0:15:58]} Bc6 {[%emt 0:07:15]} 24. Rxa7 {[%emt 0:00:30]} Nxc3 {[%emt 0:00:05]} 25. Bb3 {[%emt 0:00:00]} Bd5 {[%emt 0:01:35]} 26. Bxd5 {[%emt 0:00:00]} Nxd5 {[%emt 0:00:00]} 27. g3 {[%emt 0:01:30]} Rc2 28. Be3 {[%emt 0:00:00]} Rfc8 {[%emt 0:04:35]} 29. Bd4 {[%emt 0:00:02]} Rd2 {[%emt 0:03:11]} 30. Be3 {[%emt 0:00:21]} Ra2 {[%emt 0:06:49]} 31. Ra6 {[%emt 0:00:31]} Rcc2 {[%emt 0:02:44]} 32. Bd4 {[%emt 0:00:49]} g5 {[%emt 0:03:29]} 33. Rf1 {[%emt 0:00:26]} b5 {[%emt 0:04:25]} 34. Ra5 {[%emt 0:00:14]} Rd2 {[%emt 0:00:28]} 35. Bc5 {[%emt 0:00:49]} Rab2 {[%emt 0:00:41]} 36. h3 {[%emt 0:00:42]} Re2 {[%emt 0:01:54]} 37. Bd4 {[%emt 0:00:32]} Rbd2 {[%emt 0:00:06]} 38. Ba1 {[%emt 0:00:23]} Ne3 {[%emt 0:00:28]} 39. Ra8+ {[%emt 0:00:31]} Kg7 {[%emt 0:00:16]} 40. Rb1 {[%emt 0:00:37]} Rxf2 {[%emt 0:00:10]} 41. Bc3 {[%emt 0:00:13]} Rg2+ {[%emt 0:00:08]} 1-0

[Event "7th Cattolica Open-A 2020"]
[Site "Cattolica"]
[Date "2020.08.31"]
[Round "1.5"]
[White "Bailet, Pierre"]
[Black "Cardili, Mariano"]
[Result "1-0"]
[ECO "B11"]
[WhiteElo "2500"]
[BlackElo "2081"]
[Annotator "ChessBase"]
[PlyCount "57"]
[EventDate "2020.08.31"]
[EventType "swiss"]
[EventCountry "ITA"]
[SourceTitle "playchess.com"]
[Source "ChessBase"]
[SourceQuality "1"]
[TimeControl "5400+30"]

1. e4 {[%emt 0:00:00]} c6 {[%emt 0:00:00]} 2. Nf3 {[%emt 0:00:07]} d5 {[%emt 0:00:09]} 3. Nc3 {[%emt 0:00:16]} Bg4 {[%emt 0:00:58]} 4. h3 {[%emt 0:00:32]} Bxf3 {[%emt 0:00:30]} 5. Qxf3 {[%emt 0:00:24]} e6 {[%emt 0:03:01]} 6. Be2 {[%emt 0:02:12]} Nd7 {[%emt 0:06:16]} 7. d4 {[%emt 0:03:37]} dxe4 {[%emt 0:04:24]} 8. Nxe4 {[%emt 0:01:07]} Ngf6 {[%emt 0:00:26]} 9. O-O {[%emt 0:01:36]} Nxe4 {[%emt 0:00:30]} 10. Qxe4 {[%emt 0:00:15]} Nf6 {[%emt 0:03:00]} 11. Qd3 {[%emt 0:00:40]} Be7 {[%emt 0:01:50]} 12. c4 {[%emt 0:07:06]} O-O {[%emt 0:01:47]} 13. Rd1 {[%emt 0:01:27]} Qc7 {[%emt 0:09:44]} 14. Be3 {[%emt 0:09:25]} Rfd8 {[%emt 0:07:37]} 15. Bf3 {[%emt 0:01:46]} e5 {[%emt 0:14:18]} 16. d5 {[%emt 0:07:43]} c5 {[%emt 0:00:43]} 17. Re1 {[%emt 0:16:35]} Nd7 {[%emt 0:11:16]} 18. Rad1 {[%emt 0:05:08]} Bd6 {[%emt 0:00:39]} 19. Bd2 {[%emt 0:07:02]} Rf8 {[%emt 0:03:33]} 20. Bg4 {[%emt 0:00:52]} Rae8 {[%emt 0:06:28]} 21. Bf5 {[%emt 0:03:06]} Kh8 {[%emt 0:05:15]} 22. Bc3 {[%emt 0:06:01]} g6 {[%emt 0:03:30]} 23. Bxd7 {[%emt 0:00:32]} Qxd7 {[%emt 0:00:09]} 24. f4 {[%emt 0:00:34]} f6 {[%emt 0:00:21]} 25. fxe5 {[%emt 0:00:23]} Bxe5 {[%emt 0:01:20]} 26. Bxe5 {[%emt 0:00:39]} fxe5 {[%emt 0:02:55]} 27. Re4 {[%emt 0:03:07]} Qf5 {[%emt 0:04:16]} 28. Qe3 {[%emt 0:02:00]} b6 {[%emt 0:04:38]} 29. Re1 {[%emt 0:01:00]} 1-0

[Event "7th Cattolica Open-A 2020"]
[Site "Cattolica"]
[Date "2020.08.31"]
[Round "1.6"]
[White "Pirrello, Christian"]
[Black "Mendonca, Leon Luke"]
[Result "0-1"]
[ECO "E19"]
[WhiteElo "2073"]
[BlackElo "2490"]
[Annotator "ChessBase"]
[PlyCount "36"]
[EventDate "2020.08.31"]
[EventType "swiss"]
[EventCountry "ITA"]
[SourceTitle "playchess.com"]
[Source "ChessBase"]
[SourceQuality "1"]
[TimeControl "5400+30"]

1. Nf3 {[%emt 0:00:00]} Nf6 {[%emt 0:00:00]} 2. c4 {[%emt 0:00:07]} b6 {[%emt 0:00:45]} 3. g3 {[%emt 0:05:29]} Bb7 {[%emt 0:00:08]} 4. Bg2 {[%emt 0:00:14]} e6 {[%emt 0:00:51]} 5. O-O {[%emt 0:00:04]} Be7 {[%emt 0:01:29]} 6. Nc3 {[%emt 0:01:15]} O-O {[%emt 0:00:09]} 7. d4 {[%emt 0:05:19]} Ne4 {[%emt 1:30:08]} 8. Qc2 {[%emt 0:11:29]} Nxc3 {[%emt 0:00:00]} 9. Qxc3 {[%emt 0:01:05]} d6 {[%emt 0:00:00]} 10. Ne1 {[%emt 0:03:01]} Bxg2 {[%emt 0:00:00]} 11. Nxg2 {[%emt 0:02:41]} c5 {[%emt 0:00:00]} 12. d5 {[%emt 0:07:42]} exd5 {[%emt 0:00:00]} 13. cxd5 {[%emt 0:00:41]} Nd7 {[%emt 0:03:00]} 14. e4 {[%emt 0:01:45]} Bf6 {[%emt 0:00:00]} 15. Qc2 {[%emt 0:03:52]} Re8 {[%emt 0:00:00]} 16. Bd2 {[%emt 0:04:08]} Rc8 {[%emt 0:00:00]} 17. Rfe1 {[%emt 0:07:50]} Ne5 {[%emt 0:00:00]} 18. Re2 {[%emt 0:02:56]} Nf3+ {[%emt 0:00:00]} 0-1

[Event "7th Cattolica Open-A 2020"]
[Site "Cattolica"]
[Date "2020.08.31"]
[Round "1.7"]
[White "Reimanis, Ritvars"]
[Black "Baracca, Paolo"]
[Result "1-0"]
[ECO "A16"]
[WhiteElo "2421"]
[BlackElo "2057"]
[Annotator "ChessBase"]
[PlyCount "51"]
[EventDate "2020.08.31"]
[EventType "swiss"]
[EventCountry "ITA"]
[SourceTitle "playchess.com"]
[Source "ChessBase"]
[SourceQuality "1"]
[TimeControl "5400+30"]

1. c4 {[%emt 0:00:00]} Nf6 {[%emt 0:00:00]} 2. Nc3 {[%emt 0:00:00]} g6 {[%emt 0:00:00]} 3. g3 {[%emt 0:00:27]} Bg7 {[%emt 0:00:05]} 4. Bg2 {[%emt 0:00:05]} O-O {[%emt 0:00:09]} 5. Rb1 {[%emt 0:01:24]} c6 {[%emt 0:04:37]} 6. e4 {[%emt 0:00:22]} d6 {[%emt 0:00:40]} 7. d4 {[%emt 0:02:57]} Nbd7 {[%emt 0:01:04]} 8. f4 {[%emt 0:11:03]} e5 {[%emt 0:03:48]} 9. fxe5 {[%emt 0:10:35]} dxe5 {[%emt 0:00:07]} 10. d5 {[%emt 0:00:14]} cxd5 {[%emt 0:02:50]} 11. cxd5 {[%emt 0:01:31]} Nb6 {[%emt 0:03:50]} 12. Nf3 {[%emt 0:08:20]} Ne8 {[%emt 0:05:59]} 13. O-O {[%emt 0:01:49]} Nd6 {[%emt 0:04:09]} 14. a4 {[%emt 0:07:51]} Bd7 {[%emt 0:10:01]} 15. b3 {[%emt 0:07:35]} Qc7 {[%emt 0:09:31]} 16. Ba3 {[%emt 0:02:13]} Nbc8 {[%emt 0:09:28]} 17. Rc1 {[%emt 0:04:55]} Qb6+ {[%emt 0:00:10]} 18. Kh1 {[%emt 0:00:06]} Bh6 {[%emt 0:00:07]} 19. Nxe5 {[%emt 0:01:15]} Be8 {[%emt 0:00:10]} 20. Ng4 {[%emt 0:03:08]} Bxc1 {[%emt 0:01:07]} 21. Nf6+ {[%emt 0:00:26]} Kg7 {[%emt 0:02:03]} 22. Bxc1 {[%emt 0:03:43]} Ne7 {[%emt 0:01:24]} 23. Bb2 {[%emt 0:03:04]} Nc4 {[%emt 0:40:11]} 24. bxc4 {[%emt 0:00:40]} Qxb2 {[%emt 0:00:00]} 25. Qd4 {[%emt 0:00:15]} Nf5 {[%emt 0:00:00]} 26. exf5 {[%emt 0:00:30]} 1-0

[Event "7th Cattolica Open-A 2020"]
[Site "Cattolica"]
[Date "2020.08.31"]
[Round "1.8"]
[White "Charaus, Florian"]
[Black "Solomon, Kenny"]
[Result "0-1"]
[ECO "E15"]
[WhiteElo "2055"]
[BlackElo "2352"]
[Annotator "ChessBase"]
[PlyCount "48"]
[EventDate "2020.08.31"]
[EventType "swiss"]
[EventCountry "ITA"]
[SourceTitle "playchess.com"]
[Source "ChessBase"]
[SourceQuality "1"]
[TimeControl "5400+30"]

1. d4 {[%emt 0:00:00]} Nf6 {[%emt 0:00:00]} 2. c4 {[%emt 0:00:00]} e6 {[%emt 0:00:00]} 3. Nf3 {[%emt 0:00:11]} b6 {[%emt 0:00:00]} 4. g3 {[%emt 0:00:06]} Ba6 {[%emt 0:00:00]} 5. Qc2 {[%emt 0:00:05]} Bb7 {[%emt 0:00:22]} 6. Bg2 {[%emt 0:00:06]} Bb4+ {[%emt 0:00:05]} 7. Bd2 {[%emt 0:01:38]} a5 {[%emt 0:01:02]} 8. O-O {[%emt 0:03:26]} Na6 {[%emt 0:02:44]} 9. a3 {[%emt 0:00:48]} Bxd2 {[%emt 0:05:26]} 10. Nbxd2 {[%emt 0:00:08]} d5 {[%emt 0:00:44]} 11. Ne5 {[%emt 0:02:01]} O-O {[%emt 0:01:04]} 12. Rfd1 {[%emt 0:02:45]} Qe7 {[%emt 0:00:41]} 13. cxd5 {[%emt 0:07:59]} exd5 {[%emt 0:00:05]} 14. Re1 {[%emt 0:07:14]} Rfe8 {[%emt 0:36:51]} 15. Rac1 {[%emt 0:08:30]} c5 {[%emt 0:03:11]} 16. e3 {[%emt 0:07:33]} Rad8 {[%emt 0:10:01]} 17. Nd3 {[%emt 0:20:48]} c4 {[%emt 0:06:58]} 18. Ne5 {[%emt 0:00:05]} b5 {[%emt 0:01:21]} 19. b3 {[%emt 0:02:13]} Rc8 {[%emt 0:02:53]} 20. bxc4 {[%emt 0:13:01]} dxc4 {[%emt 0:00:07]} 21. e4 {[%emt 0:00:18]} Qxa3 {[%emt 0:06:46]} 22. Ra1 {[%emt 0:02:54]} Nb4 {[%emt 0:20:39]} 23. Qb1 {[%emt 0:01:08]} Qc3 {[%emt 0:00:00]} 24. Rxa5 {[%emt 0:06:30]} Nd3 {[%emt 0:00:00]} 0-1

[Event "7th Cattolica Open-A 2020"]
[Site "Cattolica"]
[Date "2020.08.31"]
[Round "1.9"]
[White "Degraeve, Remy"]
[Black "Louis, Corentin"]
[Result "1-0"]
[ECO "A52"]
[WhiteElo "2349"]
[BlackElo "2053"]
[Annotator "ChessBase"]
[PlyCount "93"]
[EventDate "2020.08.31"]
[EventType "swiss"]
[EventCountry "ITA"]
[SourceTitle "playchess.com"]
[Source "ChessBase"]
[SourceQuality "1"]
[TimeControl "5400+30"]

1. d4 {[%emt 0:00:00]} Nf6 {[%emt 0:00:00]} 2. c4 {[%emt 0:00:00]} e5 {[%emt 0:00:08]} 3. dxe5 {[%emt 0:00:00]} Ng4 {[%emt 0:00:09]} 4. Bf4 {[%emt 0:00:11]} Nc6 {[%emt 0:00:17]} 5. Nf3 {[%emt 0:00:08]} Bb4+ {[%emt 0:00:11]} 6. Nbd2 {[%emt 0:00:05]} Qe7 {[%emt 0:00:14]} 7. e3 {[%emt 0:00:05]} Ngxe5 {[%emt 0:01:26]} 8. Nxe5 {[%emt 0:00:04]} Nxe5 {[%emt 0:00:10]} 9. Be2 {[%emt 0:00:04]} O-O {[%emt 0:00:24]} 10. O-O {[%emt 0:00:03]} Ng6 {[%emt 0:00:51]} 11. Bg3 {[%emt 0:01:07]} Bd6 {[%emt 0:00:44]} 12. Bxd6 {[%emt 0:02:02]} Qxd6 {[%emt 0:00:09]} 13. Rc1 {[%emt 0:02:37]} Qe7 {[%emt 0:10:57]} 14. c5 {[%emt 0:00:56]} d6 {[%emt 0:04:08]} 15. cxd6 {[%emt 0:00:09]} Qxd6 {[%emt 0:00:07]} 16. Qc2 {[%emt 0:04:09]} c6 {[%emt 0:01:44]} 17. Rfd1 {[%emt 0:04:53]} Qe7 {[%emt 0:04:21]} 18. Nb3 {[%emt 0:02:22]} Be6 {[%emt 0:16:04]} 19. Nc5 {[%emt 0:07:38]} Rac8 {[%emt 0:09:04]} 20. Qe4 {[%emt 0:02:28]} Rfe8 {[%emt 0:05:00]} 21. Nxe6 {[%emt 0:00:41]} Qxe6 {[%emt 0:00:33]} 22. Qxe6 {[%emt 0:00:07]} fxe6 {[%emt 0:00:25]} 23. Rd7 {[%emt 0:01:26]} Re7 {[%emt 0:00:09]} 24. Rxe7 {[%emt 0:00:04]} Nxe7 {[%emt 0:00:10]} 25. Rd1 {[%emt 0:00:03]} Nd5 {[%emt 0:00:35]} 26. e4 {[%emt 0:00:56]} Nf6 {[%emt 0:00:35]} 27. f3 {[%emt 0:01:11]} Kf7 {[%emt 0:02:30]} 28. Kf2 {[%emt 0:01:01]} Ke7 {[%emt 0:02:14]} 29. Rd3 {[%emt 0:02:10]} c5 {[%emt 0:03:59]} 30. Ke3 {[%emt 0:01:18]} Nd7 {[%emt 0:08:39]} 31. f4 {[%emt 0:05:18]} Nb8 {[%emt 0:01:42]} 32. Rc3 {[%emt 0:03:29]} Rc6 {[%emt 0:11:21]} 33. e5 {[%emt 0:04:01]} Nd7 {[%emt 0:01:59]} 34. Ke4 {[%emt 0:03:54]} Nb6 {[%emt 0:00:58]} 35. Rh3 {[%emt 0:02:02]} h6 {[%emt 0:00:32]} 36. Rg3 {[%emt 0:00:07]} Kf8 {[%emt 0:00:57]} 37. Bb5 {[%emt 0:06:26]} Rc7 {[%emt 0:01:42]} 38. Rg6 {[%emt 0:00:26]} Kf7 {[%emt 0:04:19]} 39. f5 {[%emt 0:01:03]} exf5+ {[%emt 0:00:06]} 40. Kxf5 {[%emt 0:00:03]} Nc8 {[%emt 0:00:16]} 41. e6+ {[%emt 0:01:16]} Kf8 {[%emt 0:00:09]} 42. Ke5 {[%emt 0:00:07]} c4 {[%emt 0:01:12]} 43. Bd7 {[%emt 0:01:35]} c3 {[%emt 0:01:17]} 44. bxc3 {[%emt 0:00:42]} Rxc3 {[%emt 0:00:09]} 45. Rg3 {[%emt 0:03:52]} Rxg3 {[%emt 0:01:07]} 46. hxg3 {[%emt 0:00:04]} Nb6 {[%emt 0:00:39]} 47. Kd6 {[%emt 0:00:14]} 1-0

[Event "7th Cattolica Open-A 2020"]
[Site "Cattolica"]
[Date "2020.08.31"]
[Round "1.10"]
[White "Ballotti, Luca"]
[Black "Krallis, Christos"]
[Result "0-1"]
[ECO "A25"]
[WhiteElo "2026"]
[BlackElo "2402"]
[Annotator "ChessBase"]
[PlyCount "60"]
[EventDate "2020.08.31"]
[EventType "swiss"]
[EventCountry "ITA"]
[SourceTitle "playchess.com"]
[Source "ChessBase"]
[SourceQuality "1"]
[TimeControl "5400+30"]

1. c4 {[%emt 0:00:00]} e5 {[%emt 0:00:01]} 2. g3 {[%emt 0:00:00]} Nc6 {[%emt 0:04:37]} 3. Bg2 {[%emt 0:00:00]} g6 {[%emt 0:00:25]} 4. Nc3 {[%emt 0:01:39]} Bg7 {[%emt 0:00:13]} 5. b3 {[%emt 0:02:51]} Nge7 {[%emt 0:00:37]} 6. Bb2 {[%emt 0:00:21]} d6 {[%emt 0:01:14]} 7. d3 {[%emt 0:03:00]} O-O {[%emt 0:01:28]} 8. e3 {[%emt 0:03:58]} Bf5 {[%emt 0:04:26]} 9. Nge2 {[%emt 0:02:10]} Qd7 {[%emt 0:00:32]} 10. h3 {[%emt 0:07:35]} Rae8 {[%emt 0:03:25]} 11. Qd2 {[%emt 0:02:36]} a6 {[%emt 0:08:18]} 12. Nd5 {[%emt 0:07:34]} Nd8 {[%emt 1:10:44]} 13. g4 {[%emt 0:08:05]} Be6 {[%emt 0:00:00]} 14. g5 {[%emt 0:13:21]} Bxd5 {[%emt 0:00:00]} 15. cxd5 {[%emt 0:00:56]} c6 {[%emt 0:00:00]} 16. e4 {[%emt 0:06:37]} cxd5 {[%emt 0:00:00]} 17. exd5 {[%emt 0:00:10]} Nf5 {[%emt 0:00:00]} 18. Ng3 {[%emt 0:12:35]} f6 {[%emt 0:03:00]} 19. Be4 {[%emt 0:26:02]} Nxg3 {[%emt 0:00:00]} 20. fxg3 {[%emt 0:00:00]} f5 {[%emt 0:00:00]} 21. Bf3 {[%emt 0:00:00]} e4 {[%emt 0:00:00]} 22. dxe4 {[%emt 0:00:00]} fxe4 {[%emt 0:00:00]} 23. Bg4 {[%emt 0:00:00]} e3 {[%emt 0:00:00]} 24. Qe2 {[%emt 0:00:00]} Qc7 {[%emt 0:00:00]} 25. Bxg7 {[%emt 0:00:00]} Qa5+ {[%emt 0:00:00]} 26. Kd1 {[%emt 0:00:00]} Rf2 {[%emt 0:00:00]} 27. Be6+ {[%emt 0:00:00]} Rxe6 {[%emt 0:00:00]} 28. dxe6 {[%emt 0:00:56]} Qd5+ {[%emt 0:00:00]} 29. Bd4 {[%emt 0:00:30]} Qxd4+ {[%emt 0:00:00]} 30. Ke1 {[%emt 0:00:13]} Qxa1+ {[%emt 0:00:00]} 0-1